bitfinex-derivatives/quotes_ETHF0:USTF0_20260307
["timestamp","ask_amount","ask_price","bid_price","bid_amount"]
[1772847657654,7.14641841,1978.9,1978.2,0.71463974]
[1772847657847,0.64302952,1978.9,1978.2,0.71463974]
[1772847664253,6.50854496,1978.8,1978.2,0.71463974]
[1772847664557,0.64527842,1978.8,1978.2,0.71463974]
[1772847666558,0.63976814,1979.0,1978.2,0.71463974]
[1772847666761,6.51202801,1978.9,1978.2,0.71463974]
[1772847666956,0.63976814,1979.0,1978.2,0.71463974]
[1772847667152,6.51203224,1978.9,1978.2,0.71463974]
[1772847667357,0.63976814,1979.0,1978.2,0.71463974]
[1772847667658,6.51433173,1978.9,1978.2,0.71463974]
[1772847667859,0.63976814,1979.0,1978.2,0.71463974]
[1772847668060,6.51433021,1978.9,1978.2,0.71463974]
[1772847668261,6.51829145,1978.8,1978.2,0.71463974]
[1772847668560,0.63952868,1978.9,1978.2,0.71463974]
[1772847668763,6.51829028,1978.8,1978.2,0.71463974]
[1772847668959,0.63952868,1978.9,1978.2,0.71463974]
[1772847669166,6.51829028,1978.8,1978.2,0.71463974]
[1772847669361,0.63952868,1978.9,1978.2,0.71463974]
[1772847669666,6.51859496,1978.8,1978.2,0.71463974]
[1772847669863,0.63952868,1978.9,1978.2,0.71463974]
[1772847670057,6.51859598,1978.8,1978.2,0.71463974]
[1772847670363,0.63952868,1978.9,1978.2,0.71463974]
[1772847670563,6.5185801,1978.8,1978.2,0.71463974]
[1772847670863,0.63952868,1978.9,1978.2,0.71463974]
[1772847671063,6.51858009,1978.8,1978.2,0.71463974]
[1772847671255,0.63952868,1978.9,1978.2,0.71463974]
[1772847671459,6.51862228,1978.8,1978.2,0.71463974]
[1772847671763,0.63952868,1978.9,1978.2,0.71463974]
[1772847671964,6.51862448,1978.8,1978.2,0.71463974]
[1772847672261,0.63952868,1978.9,1978.2,0.71463974]
[1772847672461,7.18699467,1978.8,1978.2,0.71463974]
[1772847672664,0.66827447,1978.8,1978.2,0.71463974]
[1772847674259,0.66827447,1978.8,1978.1,40.80472648]
[1772847674463,0.66803758,1978.6,1978.0,0.64898978]
[1772847675662,0.66803758,1978.6,1978.1,41.44898978]
[1772847679970,0.66803758,1978.6,1978.1,0.64898978]
[1772847680469,0.66803758,1978.6,1978.0,0.00592595]
[1772847681069,0.66803758,1978.6,1978.0,40.80592595]
[1772847681771,0.66803758,1978.6,1978.0,41.45491573]
[1772847681961,0.66803758,1978.6,1978.0,21.87642284]
[1772847682162,0.70606815,1978.3,1977.8,2.03354304]
[1772847682662,0.70606815,1978.3,1977.9,41.44898978]
[1772847682867,0.70606815,1978.3,1977.9,0.64898978]
[1772847683166,0.70606815,1978.3,1977.9,0.65477853]
[1772847683568,0.70606815,1978.3,1977.9,0.00578875]
[1772847683969,0.70606815,1978.3,1977.8,0.64898978]
[1772847684771,0.70606815,1978.3,1977.7,0.64898978]
[1772847684972,0.70606815,1978.3,1977.7,29.65473155]
[1772847685172,0.70606815,1978.3,1977.8,0.64898978]
[1772847687773,0.70606815,1978.6,1977.8,0.64898978]
[1772847690475,0.70606815,1978.6,1977.9,29.0]
[1772847690775,0.70606815,1978.6,1978.0,0.64898978]
[1772847690976,0.70606815,1978.9,1978.0,0.64898978]
[1772847691187,0.70606815,1978.9,1978.2,0.64898978]
[1772847696077,0.70606815,1978.9,1978.4,3.12511694]
[1772847707987,6.39416753,1979.2,1978.5,3.12511694]
[1772847707988,3.11888346,1979.2,1978.5,3.12511694]
[1772847708195,1.95076391,1979.0,1978.3,29.0]
[1772847708380,1.95076391,1978.8,1978.3,3.12511694]
[1772847708584,3.11888346,1978.7,1978.2,3.12511694]
[1772847708779,3.11888346,1978.5,1977.9,3.12511694]
[1772847716399,3.11888346,1978.3,1977.9,3.12511694]
[1772847720794,3.11888346,1978.3,1977.8,73.28698495]
[1772847720998,3.01727052,1978.1,1977.8,32.48698495]
[1772847721195,3.02256761,1978.1,1977.8,32.48698495]
[1772847730512,4.91897153,1978.4,1977.9,3.1214885]
[1772847731311,2.96820762,1978.3,1977.9,3.1214885]
[1772847731512,2.97339185,1978.3,1977.9,3.1214885]
[1772847736617,0.00518423,1978.3,1977.9,3.1214885]
[1772847736813,2.96820762,1978.5,1977.9,3.1214885]
[1772847737218,2.96820762,1978.7,1977.9,3.1214885]
[1772847737417,9.47698884,1978.6,1977.9,3.1214885]
[1772847737720,2.97292923,1978.6,1977.9,3.1214885]
[1772847738221,6.51409827,1978.5,1977.9,3.1214885]
[1772847738423,2.97292923,1978.6,1977.9,3.1214885]
[1772847738722,6.51414278,1978.5,1977.9,3.1214885]
[1772847739020,2.97292923,1978.6,1977.9,3.1214885]
[1772847739221,6.51414899,1978.5,1977.9,3.1214885]
[1772847739421,2.97292923,1978.6,1977.9,3.1214885]
[1772847739621,6.5146235,1978.5,1977.9,3.1214885]
[1772847739823,2.97292923,1978.6,1977.9,3.1214885]
[1772847740023,6.51462452,1978.5,1977.9,3.1214885]
[1772847740224,2.97292923,1978.6,1977.9,3.1214885]
[1772847740425,6.51483541,1978.5,1977.9,3.1214885]
[1772847740624,2.97292923,1978.6,1977.9,3.1214885]
[1772847740824,6.51483556,1978.5,1977.9,3.1214885]
[1772847741020,2.97292923,1978.6,1978.0,3.1214885]
[1772847745228,0.00472161,1978.6,1978.0,3.1214885]
[1772847746129,2.97292923,1978.6,1978.0,3.1214885]
[1772847748629,0.00472161,1978.6,1978.0,3.1214885]
[1772847749229,2.97292923,1978.6,1978.0,3.1214885]
[1772847751724,0.00472161,1978.6,1978.2,3.1214885]
[1772847751929,2.96820762,1978.8,1978.2,3.1214885]
[1772847752930,2.97397073,1978.8,1978.2,3.1214885]
[1772847763232,2.66744081,1978.5,1977.8,2.63073728]
[1772847763432,2.66744081,1978.4,1977.8,2.63073728]
[1772847766136,2.66744081,1978.2,1977.7,43.43647905]
[1772847766340,4.61820472,1978.2,1977.7,43.43647905]
[1772847766742,2.66744081,1978.1,1977.7,43.43647905]
[1772847767240,2.66744081,1978.1,1977.8,2.63073728]
[1772847769036,2.66744081,1978.1,1977.7,40.80574177]
[1772847769233,2.66744081,1978.1,1977.4,2.63073728]
[1772847769740,2.66744081,1978.1,1977.5,40.8]
[1772847770141,2.66744081,1978.1,1977.4,2.63073728]
[1772847770341,2.66744081,1978.1,1977.4,2.63638173]
[1772847770841,2.66744081,1978.1,1977.4,43.43638173]
[1772847771638,2.66744081,1978.1,1977.4,2.47650164]
[1772847771838,2.66744081,1978.1,1977.3,32.62750164]
[1772847772139,2.66744081,1978.1,1977.3,2.47650164]
[1772847772340,2.66744081,1977.8,1977.3,2.47650164]
[1772847772537,2.66744081,1977.8,1977.1,2.46274836]
[1772847772844,2.66744081,1977.8,1977.1,2.46641635]
[1772847780646,3.15745368,1978.1,1977.1,2.46641635]
[1772847794761,3.04751385,1978.3,1977.1,2.46641635]
[1772847795060,3.04751385,1978.1,1977.1,2.46641635]
[1772847809375,3.04751385,1977.9,1977.1,2.46641635]
[1772847812771,4.99999565,1977.9,1977.1,0.00366799]
[1772847812976,2.68658768,1977.7,1977.1,2.79792366]
[1772847818380,2.68658768,1977.7,1977.1,0.00366799]
[1772847818582,2.68658768,1977.5,1977.0,40.8]
[1772847819479,2.68658768,1977.5,1977.0,0.00603694]
[1772847819777,2.68658768,1977.5,1976.9,2.79425567]
[1772847820379,2.68658768,1977.5,1976.9,43.59425567]
[1772847820578,2.68658768,1977.5,1976.9,43.59784228]
[1772847823786,2.68658768,1977.5,1977.0,2.79425567]
[1772847824285,2.68658768,1977.9,1977.0,2.79425567]
[1772847825186,2.68658768,1977.9,1977.2,2.79425567]
[1772847830679,2.68658768,1977.8,1977.2,2.79425567]
[1772847833488,2.68658768,1978.0,1977.2,2.79425567]
[1772847834094,0.25277,1978.2,1977.2,2.79425567]
[1772847834095,2.68658768,1977.8,1977.2,2.79425567]
[1772847834390,2.68658768,1977.8,1977.1,33.46925567]
[1772847837992,2.68658768,1977.8,1977.2,3.08528714]
[1772847849706,3.04047278,1977.6,1977.2,3.08528714]
[1772847857113,3.04047278,1977.6,1976.9,43.82376151]
[1772847857410,3.04047278,1977.4,1976.9,3.02376151]
[1772847857605,3.04614423,1977.4,1976.9,3.02376151]
[1772847859307,0.00567145,1977.4,1976.9,3.02376151]
[1772847863512,3.04614423,1977.4,1976.9,3.02376151]
[1772847870513,0.00567145,1977.4,1976.9,3.02376151]
[1772847872614,2.75591038,1977.4,1976.9,3.02376151]
[1772847880717,4.70899541,1977.4,1976.9,0.00358661]
[1772847880919,2.75023893,1977.3,1976.9,0.00358661]
[1772847881219,2.75023893,1977.3,1976.8,30.29781353]
[1772847881426,2.75023893,1977.1,1976.5,31.255]
[1772847881725,2.75023893,1977.1,1976.5,34.02279402]
[1772847881919,2.75023893,1977.1,1976.5,74.82279402]
[1772847882119,2.75023893,1977.1,1976.5,40.8]
[1772847882325,2.75023893,1977.1,1976.5,0.00553201]
[1772847882825,2.75023893,1977.1,1976.5,40.80553201]
[1772847883223,2.75023893,1977.1,1976.5,43.57332603]
[1772847885025,1.95308503,1977.2,1976.1,2.76779402]
[1772847885026,2.75023893,1976.5,1976.1,2.76779402]
[1772847885425,2.75023893,1976.5,1976.1,43.56779402]
[1772847885925,2.75023893,1976.5,1976.1,43.57153062]
[1772847888124,2.75023893,1976.5,1976.2,2.76779402]
[1772847888528,0.25293,1976.9,1976.2,2.76779402]
[1772847888529,2.75023893,1976.9,1976.2,2.76779402]
[1772847891619,2.75023893,1976.9,1976.4,2.76779402]
[1772847891822,2.75023893,1977.0,1976.5,1.95308503]
[1772847892125,2.75023893,1977.0,1976.6,2.76779402]
[1772847894527,2.75023893,1977.3,1976.6,2.76779402]
[1772847895724,2.79833368,1978.7,1977.2,3.90901712]
[1772847895929,2.79833368,1978.7,1977.9,1.95450856]
[1772847896224,2.79833368,1978.7,1978.0,71.865]
[1772847896628,0.00397947,1978.7,1978.0,71.87097338]
[1772847896828,2.79780517,1978.9,1978.0,71.87097338]
[1772847897128,2.79780517,1979.7,1978.3,2.76779402]
[1772847897623,2.79780517,1979.7,1978.5,1.95450856]
[1772847897833,4.45198212,1979.6,1978.6,3.47318382]
[1772847898622,4.4579083,1979.7,1978.6,3.47318382]
[1772847898832,1.36188842,1980.9,1978.6,3.47318382]
[1772847898833,4.45198212,1980.1,1979.0,3.47461196]
[1772847899127,4.45198212,1980.1,1978.9,0.25267]
[1772847899128,4.45198212,1980.1,1979.2,3.46868578]
[1772847899919,4.45779191,1980.1,1979.2,3.46868578]
[1772847900730,4.45198212,1980.0,1979.2,3.46868578]
[1772847901734,4.45198212,1980.0,1979.4,3.23990131]
[1772847901927,4.45198212,1980.0,1979.4,3.24403032]
[1772847902130,11.82216374,1979.9,1979.4,3.24403032]
[1772847902329,4.14866959,1979.9,1979.4,3.24403032]
[1772847902622,4.14866959,1979.8,1979.3,40.8]
[1772847903029,4.14866959,1979.6,1979.3,40.8]
[1772847903433,4.14866959,1979.6,1978.8,3.21504559]
[1772847903633,4.14866959,1979.6,1978.8,3.21911594]
[1772847904328,4.14866959,1979.6,1979.0,3.17205001]
[1772847904729,4.14866959,1979.5,1979.0,3.17205001]
[1772847905229,7.67349415,1979.5,1979.0,3.17205001]
[1772847905431,4.14866959,1979.4,1979.0,3.17205001]
[1772847908333,4.14866959,1980.0,1979.0,3.17205001]
[1772847908533,4.14866959,1979.7,1979.0,3.17205001]
[1772847909031,4.14866959,1979.5,1979.0,3.17205001]
[1772847909536,4.14866959,1979.4,1979.0,3.17205001]
[1772847909734,4.14866959,1979.4,1978.8,3.21407065]
[1772847910035,4.14866959,1979.2,1978.8,3.21407065]
[1772847910235,4.14866959,1979.2,1978.9,3.18215164]
[1772847910535,4.14866959,1979.1,1978.8,43.98791314]
[1772847910733,4.14866959,1979.1,1978.8,40.80407035]
[1772847911130,4.14866959,1979.1,1978.8,0.00407035]
[1772847911537,7.67349415,1979.0,1978.8,0.00407035]
[1772847911835,4.14866959,1978.9,1978.8,0.00407035]
[1772847912437,11.82216374,1978.9,1978.6,43.98140529]
[1772847912734,4.14866959,1978.9,1978.6,40.8]
[1772847912934,4.14866959,1978.8,1978.6,40.8]
[1772847913437,7.67349415,1978.7,1978.6,40.80494]
[1772847913735,7.67923808,1978.7,1978.6,40.80494]
[1772847914137,6.51038095,1978.7,1978.6,3.10084071]
[1772847915435,4.14866959,1979.1,1978.6,3.10084071]
[1772847916436,4.15248287,1979.1,1978.6,3.10084071]
[1772847920240,4.42809612,1978.9,1978.6,0.00494]
[1772847921038,4.42809612,1978.9,1978.5,40.8]
[1772847922136,4.42809612,1978.9,1978.5,41.13659577]
[1772847925638,4.42809612,1978.9,1978.5,0.0062249]
[1772847930543,7.26590635,1978.8,1978.5,0.0062249]
[1772847930740,4.37580509,1978.8,1978.5,0.0062249]
[1772847935647,7.26590635,1978.8,1978.5,0.0062249]
[1772847935849,4.36017482,1978.7,1978.5,0.0062249]
[1772847936241,4.3639881,1979.1,1978.5,0.1088091]
[1772847936443,6.72051608,1979.0,1978.6,0.10377472]
[1772847936849,6.72051608,1979.0,1978.6,40.90377472]
[1772847937052,6.72051608,1979.0,1978.7,0.07810024]
[1772847937750,6.72051608,1979.0,1978.6,40.91362517]
[1772847938442,0.00381328,1979.1,1978.6,40.91362517]
[1772847938646,6.59972842,1979.0,1978.7,4.14795012]
[1772847938850,4.24320044,1979.1,1978.7,4.14795012]
[1772847942452,4.24320044,1979.1,1978.6,52.87268325]
[1772847942848,4.24320044,1979.1,1978.5,7.93095803]
[1772847943051,4.24320044,1979.1,1978.5,12.07890815]
[1772847945354,4.24320044,1979.1,1978.6,4.14795012]
[1772847952166,4.24320044,1979.1,1978.6,12.07268325]
[1772847956374,4.24320044,1979.1,1978.6,2.87956526]
[1772847956581,4.24320044,1979.1,1978.5,4.15417502]
[1772847976088,0.00381328,1979.1,1978.7,4.89079119]
[1772847976790,1.46472688,1979.1,1978.7,4.89079119]
[1772847980993,0.00381328,1979.1,1978.7,4.89079119]
[1772847981696,1.3745584,1979.1,1978.7,4.89079119]
[1772847982188,0.00381328,1979.1,1978.7,4.89079119]
[1772847982896,1.35310134,1979.1,1978.7,4.89079119]
[1772847992102,0.00381328,1979.1,1978.7,4.89079119]
[1772848021421,8.685,1979.3,1978.7,4.89079119]
[1772848022524,8.69143486,1979.3,1978.7,4.89079119]
[1772848030240,0.00643486,1979.3,1978.7,4.89079119]
[1772848038543,8.806,1979.4,1978.7,4.89079119]
[1772848039644,8.81062126,1979.4,1978.7,4.89079119]
[1772848050952,0.00462126,1979.4,1978.7,4.89079119]
[1772848051160,8.838,1979.8,1978.8,4.28968385]
[1772848051459,6.50542589,1979.7,1978.8,4.28968385]
[1772848051759,6.03344934,1979.6,1978.8,4.28968385]
[1772848051960,8.838,1979.8,1978.8,4.28968385]
[1772848052259,6.50565111,1979.7,1978.8,4.28968385]
[1772848052559,8.84155979,1979.8,1978.8,4.28968385]
[1772848052856,6.03339967,1979.7,1978.8,4.28968385]
[1772848053057,8.84155979,1979.8,1978.8,4.28968385]
[1772848053258,6.03294299,1979.7,1978.8,4.28968385]
[1772848053458,0.00355979,1979.8,1978.8,4.28968385]
[1772848053657,6.03312307,1979.7,1978.8,4.28968385]
[1772848053860,0.00355979,1979.8,1978.8,4.28968385]
[1772848054057,6.0331196,1979.7,1978.8,4.28968385]
[1772848054251,0.00355979,1979.8,1978.8,4.28968385]
[1772848054454,6.03278112,1979.7,1978.8,4.28968385]
[1772848054655,0.00355979,1979.8,1978.8,4.28968385]
[1772848054857,6.03276581,1979.7,1978.8,4.28968385]
[1772848055059,0.00355979,1979.8,1978.8,4.28968385]
[1772848055359,6.03264785,1979.7,1978.8,4.28968385]
[1772848055576,0.00355979,1979.8,1978.8,4.28968385]
[1772848055760,6.03264785,1979.7,1978.8,4.28968385]
[1772848055958,0.00355979,1979.8,1978.8,4.28968385]
[1772848056156,6.03264884,1979.7,1978.8,4.28968385]
[1772848056359,0.00355979,1979.8,1978.8,4.28968385]
[1772848056554,6.03266804,1979.7,1978.8,4.28968385]
[1772848056858,0.00355979,1979.8,1978.8,4.28968385]
[1772848057058,6.03266885,1979.7,1978.8,4.28968385]
[1772848057254,0.00355979,1979.8,1978.8,4.28968385]
[1772848057459,6.03283713,1979.7,1978.8,4.28968385]
[1772848057662,0.00355979,1979.8,1978.8,4.28968385]
[1772848057862,6.03240992,1979.7,1978.8,4.28968385]
[1772848058062,0.00355979,1979.8,1978.8,4.28968385]
[1772848058262,6.03275323,1979.7,1978.8,4.28968385]
[1772848058561,0.00355979,1979.8,1978.8,4.28968385]
[1772848058764,6.03275004,1979.7,1978.8,4.28968385]
[1772848059062,0.00355979,1979.8,1978.8,4.28968385]
[1772848059258,6.03325677,1979.7,1978.8,4.28968385]
[1772848059458,0.00355979,1979.8,1978.8,4.28968385]
[1772848059659,6.03326205,1979.7,1978.8,4.28968385]
[1772848059860,0.00355979,1979.8,1978.8,4.28968385]
[1772848060060,6.03320203,1979.7,1978.8,4.28968385]
[1772848060261,0.00355979,1979.8,1978.8,4.28968385]
[1772848060461,6.03394394,1979.7,1978.8,4.28968385]
[1772848060662,0.00355979,1979.8,1978.8,4.28968385]
[1772848060962,6.0339438,1979.7,1978.8,4.28968385]
[1772848061264,0.00355979,1979.8,1978.8,4.28968385]
[1772848061564,6.03370072,1979.7,1978.8,4.28968385]
[1772848061764,0.00355979,1979.8,1978.8,4.28968385]
[1772848061958,6.03370746,1979.7,1978.8,4.28968385]
[1772848062154,0.00355979,1979.8,1978.8,4.28968385]
[1772848062356,6.03345962,1979.7,1978.8,4.28968385]
[1772848062556,0.00355979,1979.8,1978.8,4.28968385]
[1772848062760,6.03344781,1979.7,1978.8,4.28968385]
[1772848062966,0.00355979,1979.8,1978.8,4.28968385]
[1772848063163,6.032867,1979.7,1978.8,4.28968385]
[1772848063363,0.00355979,1979.8,1978.8,4.28968385]
[1772848063566,6.03231979,1979.7,1978.8,4.28968385]
[1772848063766,0.00355979,1979.8,1978.8,4.28968385]
[1772848063965,6.03230984,1979.7,1978.8,4.28968385]
[1772848064164,0.00355979,1979.8,1978.8,4.28968385]
[1772848064463,6.03223932,1979.7,1978.8,4.28968385]
[1772848064664,0.00355979,1979.8,1978.8,4.28968385]
[1772848064864,6.03218377,1979.7,1978.8,4.28968385]
[1772848065064,0.00355979,1979.8,1978.8,4.28968385]
[1772848065266,6.03210855,1979.7,1978.8,4.28968385]
[1772848065566,0.00355979,1979.8,1978.8,4.28968385]
[1772848065865,6.03211453,1979.7,1978.8,4.28968385]
[1772848066065,0.00355979,1979.8,1978.8,4.28968385]
[1772848066264,6.03211313,1979.7,1978.8,4.28968385]
[1772848066466,0.00355979,1979.8,1978.8,4.28968385]
[1772848066766,6.0321178,1979.7,1978.8,4.28968385]
[1772848066958,0.00355979,1979.8,1978.8,4.28968385]
[1772848067158,6.03211879,1979.7,1978.8,4.28968385]
[1772848067366,0.00355979,1979.8,1978.8,4.28968385]
[1772848067567,6.03213514,1979.7,1978.8,4.28968385]
[1772848067761,0.00355979,1979.8,1978.8,4.28968385]
[1772848074573,0.00355979,1979.8,1979.2,4.14704773]
[1772848078774,0.00355979,1979.8,1979.4,4.16860331]
[1772848079677,8.84,1979.9,1979.4,4.16860331]
[1772848080774,8.84422914,1979.9,1979.4,4.16860331]
[1772848084082,0.00422914,1979.9,1979.4,4.16860331]
[1772848084282,0.00422914,1979.9,1979.6,4.14975839]
[1772848087482,0.00422914,1979.9,1979.0,3.78266023]
[1772848087788,8.905,1979.8,1979.0,3.78266023]
[1772848091492,1.9489271,1979.7,1979.0,3.78266023]
[1772848094894,8.905,1979.8,1979.0,3.78266023]
[1772848095092,8.905,1979.8,1979.2,3.79947712]
[1772848095989,0.00422914,1979.9,1979.2,3.79947712]
[1772848096195,8.941,1979.8,1979.4,3.80549563]
[1772848097591,0.00422914,1979.9,1979.4,3.80549563]
[1772848100495,0.00422914,1979.9,1979.0,3.79147905]
[1772848105096,1.9489271,1979.8,1979.0,3.79147905]
[1772848116406,0.00422914,1979.9,1979.1,1.9489271]
[1772848116608,0.00422914,1979.9,1979.2,3.7819998]
[1772848136122,9.12022914,1979.9,1979.2,3.7819998]
[1772848147633,6.03486767,1979.8,1979.2,3.7819998]
[1772848147831,9.12022914,1979.9,1979.2,3.7819998]
[1772848148031,6.03486767,1979.8,1979.2,3.7819998]
[1772848148231,9.12022914,1979.9,1979.2,3.7819998]
[1772848148533,6.03477922,1979.8,1979.2,3.7819998]
[1772848148831,9.12022914,1979.9,1979.2,3.7819998]
[1772848149035,6.03480135,1979.8,1979.2,3.7819998]
[1772848149232,9.12022914,1979.9,1979.2,3.7819998]
[1772848162549,0.00422914,1979.9,1979.2,3.7819998]
[1772848167850,7.89054955,1980.4,1978.8,0.25268]
[1772848167851,6.31765444,1981.7,1980.2,3.88036589]
[1772848168040,1.47247673,1981.8,1980.6,3.88036589]
[1772848168041,1.94896985,1981.5,1980.6,3.88036589]
[1772848168242,10.73812362,1981.6,1980.7,3.88036589]
[1772848168243,13.51160514,1981.6,1980.7,3.88036589]
[1772848168744,13.51763755,1981.6,1980.7,3.88681122]
[1772848178351,13.51763755,1981.6,1980.9,3.89242869]
[1772848178352,0.00603241,1981.6,1980.9,3.89242869]
[1772848179150,4.22860514,1981.5,1980.9,3.89242869]
[1772848179655,0.00603241,1981.6,1980.9,3.89242869]
[1772848179854,4.08361027,1981.6,1980.9,3.89242869]
[1772848189560,0.00603241,1981.6,1980.9,3.89242869]
[1772848192252,2.54025698,1981.5,1980.9,3.89242869]
[1772848196670,2.54025698,1981.5,1981.2,3.09927274]
[1772848199167,1.31573394,1981.5,1981.2,3.09927274]
[1772848199467,0.81082533,1982.1,1981.4,2.90758022]
[1772848199770,1.835311,1982.1,1981.7,2.90758022]
[1772848200271,1.83983688,1982.1,1981.7,2.90758022]
[1772848201267,0.81535121,1982.1,1981.7,2.90758022]
[1772848201575,0.25219,1982.8,1981.9,2.90758022]
[1772848201874,7.03903966,1982.7,1981.9,2.90758022]
[1772848202073,1.24053732,1982.7,1981.9,2.90758022]
[1772848202274,0.25219,1982.8,1982.1,2.90153112]
[1772848202474,0.00508311,1982.8,1982.1,2.90636276]
[1772848202970,3.18739307,1982.7,1982.1,0.00483164]
[1772848203171,0.00508311,1982.8,1981.8,40.8]
[1772848203172,1.22873088,1982.4,1981.8,40.8]
[1772848203469,1.22873088,1982.2,1981.3,2.90153112]
[1772848204074,1.22873088,1982.2,1981.4,1.94509321]
[1772848204274,1.22873088,1982.2,1981.5,2.90153112]
[1772848208578,0.25224,1982.4,1981.5,2.90153112]
[1772848208883,1.24538676,1982.5,1981.8,2.90153112]
[1772848210484,1.24538676,1982.5,1981.5,1.94509321]
[1772848210684,1.24538676,1982.5,1981.6,2.90153112]
[1772848210984,1.20615679,1982.3,1981.6,2.90153112]
[1772848218384,1.0550547,1982.1,1981.6,2.90153112]
[1772848240812,1.55945073,1981.9,1981.4,2.60958548]
[1772848241711,1.66922281,1982.0,1981.4,2.60958548]
[1772848250919,10.86144133,1982.1,1981.4,2.60958548]
[1772848251119,5.81501181,1982.0,1981.4,2.60958548]
[1772848251419,10.86144133,1982.1,1981.4,2.60958548]
[1772848251721,5.81509417,1982.0,1981.4,2.60958548]
[1772848251915,10.86144133,1982.1,1981.4,2.60958548]
[1772848252212,5.81509602,1982.0,1981.4,2.60958548]
[1772848252418,10.86144133,1982.1,1981.4,2.60958548]
[1772848252618,5.8152399,1982.0,1981.4,2.60958548]
[1772848252821,10.86144133,1982.1,1981.4,2.60958548]
[1772848253120,5.81523861,1982.0,1981.4,2.60958548]
[1772848253320,10.86144133,1982.1,1981.4,2.60958548]
[1772848256324,9.256,1982.1,1981.8,2.60958548]
[1772848257222,10.77005432,1982.1,1981.8,2.60958548]
[1772848261725,1.48787984,1982.0,1981.4,2.44261047]
[1772848265132,10.69276869,1982.1,1981.4,2.44261047]
[1772848265333,9.309,1982.4,1981.7,2.39623594]
[1772848266132,9.309,1982.4,1981.8,2.39623594]
[1772848266432,9.15633966,1982.4,1981.8,2.39623594]
[1772848268233,10.73968708,1982.7,1981.8,2.39623594]
[1772848269436,9.316,1982.7,1981.8,2.39623594]
[1772848269733,1.36378396,1982.8,1982.0,2.39623594]
[1772848269933,0.00508311,1982.8,1982.0,2.39623594]
[1772848270127,0.00508311,1982.8,1982.1,2.39623594]
[1772848271536,0.00508311,1982.8,1982.3,2.39623594]
[1772848272134,1.320429,1982.8,1982.3,2.39623594]
[1772848274233,0.00508311,1982.8,1982.3,2.39623594]
[1772848275432,1.28375739,1982.8,1982.3,2.39623594]
[1772848278439,0.00508311,1982.8,1982.3,2.39623594]
[1772848281139,1.19920946,1982.8,1982.3,2.39623594]
[1772848282037,0.00508311,1982.8,1982.3,2.39623594]
[1772848284642,1.1414657,1983.2,1982.3,2.39623594]
[1772848285746,1.14754886,1983.2,1982.3,2.39623594]
[1772848289041,1.14754886,1983.2,1982.4,2.39623594]
[1772848290141,0.00608316,1983.2,1982.4,2.39623594]
[1772848290748,1.06609333,1983.4,1982.7,2.39623594]
[1772848291258,1.31819333,1983.4,1982.6,2.39623594]
[1772848291839,1.32212333,1983.4,1982.6,0.00552929]
[1772848292348,1.04726221,1983.2,1982.6,0.00552929]
[1772848299949,0.91765656,1983.0,1982.4,2.23512574]
[1772848300251,0.90653103,1982.9,1982.3,2.23512574]
[1772848300844,0.90653103,1982.9,1982.3,2.23888473]
[1772848302652,9.315,1983.0,1982.3,2.23888473]
[1772848303157,10.19226097,1983.0,1982.3,2.23888473]
[1772848305258,4.21295729,1983.3,1982.3,2.23888473]
[1772848305259,0.84348326,1983.2,1982.3,2.23888473]
[1772848305964,0.82524254,1983.0,1982.3,2.23888473]
[1772848307365,5.01997328,1983.4,1982.3,2.23888473]
[1772848307564,16.41269787,1983.3,1982.3,2.23888473]
[1772848307766,6.28329222,1983.2,1982.3,2.23888473]
[1772848307965,0.79840565,1983.2,1982.3,2.23888473]
[1772848309664,0.7666998,1983.0,1982.3,2.23888473]
[1772848310465,0.75589917,1982.8,1982.3,2.23888473]
[1772848313575,0.75589917,1982.8,1982.3,0.00375899]
[1772848313777,0.69755717,1982.7,1982.3,0.00375899]
[1772848314666,0.69755717,1982.7,1982.3,2.23888473]
[1772848315272,0.69755717,1982.7,1982.3,0.00375899]
[1772848316880,0.69755717,1982.7,1982.2,2.23512574]
[1772848317978,0.69755717,1982.7,1982.2,2.24082838]
[1772848319572,0.60460648,1983.0,1982.2,2.24082838]
[1772848319780,0.60460648,1982.8,1982.2,2.24082838]
[1772848320775,1.94375357,1983.0,1982.2,2.24082838]
[1772848320975,9.9419345,1983.1,1982.3,2.31958964]
[1772848321175,6.42634499,1983.0,1982.3,2.31958964]
[1772848321383,0.59771034,1983.0,1982.3,2.31958964]
[1772848322983,9.93183046,1983.1,1982.3,2.31958964]
[1772848323184,9.348,1983.1,1982.5,2.10625242]
[1772848323375,2.51714355,1983.3,1982.5,2.10625242]
[1772848323577,16.21578559,1983.2,1982.5,2.10625242]
[1772848323777,6.28739561,1983.1,1982.5,2.10625242]
[1772848323978,9.92838998,1983.2,1982.5,2.10625242]
[1772848324178,6.28739561,1983.1,1982.5,2.10625242]
[1772848324478,9.92838998,1983.2,1982.5,2.10625242]
[1772848324678,6.28761217,1983.1,1982.5,2.10625242]
[1772848324877,9.92838998,1983.2,1982.5,2.10625242]
[1772848325075,6.28761217,1983.1,1982.5,2.10625242]
[1772848325285,9.92838998,1983.2,1982.5,2.10625242]
[1772848325487,5.82998133,1983.1,1982.5,2.10625242]
[1772848325787,9.92838998,1983.2,1982.5,2.10625242]
[1772848325979,5.82998133,1983.1,1982.5,2.10625242]
[1772848326181,9.92838998,1983.2,1982.5,2.10625242]
[1772848326382,5.83006582,1983.1,1982.5,2.10625242]
[1772848326686,9.92838998,1983.2,1982.5,2.10625242]
[1772848326883,5.83006582,1983.1,1982.5,2.10625242]
[1772848327087,9.365,1983.1,1982.5,2.10625242]
[1772848327984,0.53764723,1983.4,1982.9,2.10625242]
[1772848328980,0.00393,1983.4,1982.9,2.10625242]
[1772848329887,13.58795729,1983.8,1983.1,2.10625242]
[1772848330085,6.2818817,1983.7,1983.1,2.10625242]
[1772848330292,5.82485845,1983.6,1983.1,2.10625242]
[1772848330484,9.8822989,1983.8,1983.1,2.10625242]
[1772848330684,0.50714059,1983.5,1982.7,2.10625242]
[1772848330884,0.51173885,1983.5,1982.7,2.10625242]
[1772848331084,9.87625077,1983.4,1982.7,2.10625242]
[1772848332782,0.49756098,1983.3,1982.7,2.10625242]
[1772848333189,9.379,1983.4,1982.7,2.10625242]
[1772848333791,9.81964959,1983.4,1982.7,2.10625242]
[1772848334997,0.43048312,1983.3,1982.7,2.10625242]
[1772848342191,11.73961285,1983.4,1982.7,2.10625242]
[1772848343294,0.40682362,1983.3,1982.7,2.10625242]
[1772848343599,11.72698376,1983.4,1982.7,2.10625242]
[1772848344800,0.39422378,1983.3,1982.7,2.10625242]
[1772848345796,0.39422378,1983.3,1982.5,2.10625242]
[1772848346097,0.3938225,1982.9,1982.4,1.90922227]
[1772848346294,0.58128581,1982.7,1982.4,1.90922227]
[1772848346998,9.99605398,1982.8,1982.4,1.90922227]
[1772848347200,0.58528606,1982.7,1982.4,1.90922227]
[1772848348495,9.95845007,1982.8,1982.4,1.90922227]
[1772848348700,9.415,1982.8,1982.4,1.90922227]
[1772848349193,9.421,1982.8,1982.4,1.90922227]
[1772848350296,9.89607544,1982.8,1982.4,1.90922227]
[1772848350495,0.47507544,1982.7,1982.4,1.90922227]
[1772848351301,9.88656768,1982.8,1982.4,1.90922227]